{"text_format":"1","workbook":"xlsx","n_sheets":11,"sheets":["Kryci_list_zadosti","Charakteristika_zadatele","Udaje_o_projektu","Popis aktivit projektu","HPP","DPP_DPČ","ONIV rozpočet","ONIV komentář","zdroj dat","Zdroje","Informace k vyplnění"],"not_rendered":{"charts":0,"images":0,"macros":1,"external_links":0,"defined_names":7,"comments":0,"pivot_tables":0},"unopened":[],"bounds":{"document_bytes":16777216,"sheet_cells":100000,"rows_first":2000,"rows_last":500,"rows_between":2000,"halvings":0,"cell_chars":16384,"cell_head_chars":4096},"cells_cut":0,"cells_raw":0,"read":"whole","date_system":"1900"}

{"sheet":"Kryci_list_zadosti","index":0,"n_rows":79,"n_cols":11,"rows_kept":79,"cut":false,"hidden":false,"merged":[[4,8,4,10],[1,0,1,10],[3,6,3,7],[3,8,3,10],[0,0,0,10],[6,0,6,10],[7,0,9,1],[7,2,9,10],[10,0,10,10],[11,0,12,1],[11,2,12,10],[13,0,13,10],[14,0,15,1],[14,2,15,10],[16,0,16,10],[17,0,19,1],[17,2,19,10],[30,0,30,4],[30,5,30,7],[30,8,30,10],[20,0,20,10],[21,0,22,1],[21,2,22,10],[23,0,23,10],[24,0,25,4],[24,6,24,10],[25,6,25,10],[26,0,26,10],[27,0,27,4],[27,6,27,10],[28,0,28,10],[29,0,29,10],[31,0,31,4],[31,5,31,7],[31,8,31,10],[32,5,32,7],[32,8,32,10],[32,1,32,4],[33,5,33,7],[33,8,33,10],[34,5,34,7],[34,8,34,10],[33,1,33,4],[34,1,34,4],[35,5,35,7],[35,8,35,10],[36,0,36,4],[36,5,36,7],[36,8,36,10],[35,1,35,4],[42,0,42,10],[47,0,47,10],[46,0,46,10],[48,0,48,10],[44,0,44,10],[45,0,45,10],[37,0,37,4],[37,5,37,7],[37,8,37,10],[38,0,38,4],[40,0,40,10],[38,5,38,9],[49,0,49,10],[50,0,50,10],[63,5,63,10],[68,0,68,10],[52,0,52,10],[56,5,56,10],[62,5,62,10],[67,0,67,10]]}
[]
["ŽÁDOST O POSKYTNUTÍ NEINVESTIČNÍ DOTACE ZE STÁTNÍHO ROZPOČTU NA ROK 2024"]
[]
[null,null,null,null,null,null,"Evidenční číslo:"]
[null,null,null,null,null,null,null,null,"(doplní poskytovatel)"]
[]
["ZÁKLADNÍ ÚDAJE"]
["Poskytovatel:",null,"Ministerstvo školství, mládeže a tělovýchovy\nKarmelitská 529/5, 118 12 Praha 1\nIČO 00022985"]
[]
[]
[]
["Název výzvy:",null,"Výzva na podporu školního stravování žáků základních škol v roce 2024"]
[]
[]
["Registrační název žadatele:"]
[]
[]
["Název projektu:"]
[]
[]
[]
["Účel, na který chce žadatel dotaci použít:"]
[]
[]
["Období realizace projektu:\n",null,null,null,null,"od:"]
[null,null,null,null,null,"do:"]
[]
["Lhůta, v níž má být účelu dotace dosaženo:",null,null,null,null,"do:"]
[]
["Základní údaje o rozpočtových nákladech na projekt "]
[null,null,null,null,null,"Celková výše nákladů",null,null,"Výše požadované dotace"]
["Mzdové prostředky celkem",null,null,null,null,{"$f":"SUM(F33:H36)","v":0},null,null,{"$f":"SUM(I33:K36)","v":0}]
[null,"Platy / mzdy na HPP"]
[null,"Ostatní osobní náklady (odměny z DPP a DPČ)"]
[null,"Zákonné odvody"]
[null,"Fond kulturních a sociálních potřeb"]
["Ostatní neinvestiční náklady "]
["Celkem za projekt",null,null,null,null,{"$f":"SUM(F33:G37)","v":0},null,null,{"$f":"SUM(I33:J37)","v":0}]
["Podíl dotace na financování projektu",null,null,null,null,{"$f":"IFERROR(ROUND((I38/F38*100),2),\"\")","v":""},null,null,null,null,"%"]
[]
["PROHLÁŠENÍ ŽADATELE O DOTACI"]
[]
["Osoba oprávněná jednat za žadatel potvrzuje, že:"]
[]
["• žadatel je bezúhonný, ve smyslu definovaném ve vyhlášení Výzvy, v rámci které žádá o dotaci"]
["• údaje v žádosti jsou pravdivé, úplně a nezkreslené"]
["• v době podávání žádosti žadatel existuje déle než 3 roky  a v tomto období realizuje obdobné aktivity, na které žádá dotaci."]
["• souhlasí, že případné rozhodnutí o poskytnutí dotace bude pro čerpání dotace obsahovat podmínku poskytnutí bezúplatné výhradní licence k autorskému dílu, lze-li předpokládat, že z poskytnuté dotace autorské dílo vznikne "]
["• žadatel je bezdlužnou osobou specifikovanou ve vyhlášení Výzvy,  v rámci které žádá o dotaci "]
["• si je vědom právních následků, pokud se dopustí jednání dle § 212  zákona č. 40/2009 Sb., trestní zákoník, ve znění pozdějších předpisů        "]
["• bere na vědomí povinnost bezodkladně oznámit poskytovateli změnu identifikačních údajů uvedených v žádosti o dotaci před vydáním rozhodutí o poskytnutí dotace        "]
[]
["V případě, že žádost není zaslána z datové schránky organizace žadatele, připojte zde elektronický podpis statutárního zástupce žadatele."]
[]
[]
[]
["Datum:",null,null,null,null,"Podpis osoby oprávněné jednat jménem žadatele:"]
[]
[]
[]
[]
[]
[null,null,null,null,null,"Razítko žadatele:"]
[null,null,null,null,null,"(pouze při podání žádosti v listinné podobě)"]
[]
[]
[]
["PŘÍLOHY ŽÁDOSTI"]
["zaškrtněte relevantní přílohy"]
[]
["Povinné přílohy:"]
[]
["        Smlouva o vedení bankovního účtu v české měně nebo jiný doklad o vedení bankovního účtu v české měně"]
["        Zřizovací listina či jiný zakládající dokument"]
["        Výroční zpráva, popř. doklad s podrobnou informací o projektech žadatele min. za poslední rok"]
[]
[]
[]
["Nepovinné přílohy  (uveďte názvy příloh):"]

{"sheet":"Charakteristika_zadatele","index":1,"n_rows":75,"n_cols":9,"rows_kept":75,"cut":false,"hidden":false,"merged":[[0,0,1,10],[2,0,2,10],[3,0,3,2],[3,3,3,10],[4,0,4,10],[5,0,5,2],[5,3,5,10],[11,3,11,10],[12,3,12,10],[13,3,13,10],[6,0,6,10],[7,0,7,2],[7,3,7,10],[8,0,8,10],[9,0,9,10],[10,3,10,7],[10,9,10,10],[10,1,10,2],[11,1,11,2],[12,1,12,2],[13,1,13,2],[18,3,18,10],[19,3,19,10],[20,0,20,2],[20,3,20,10],[14,3,14,10],[15,3,15,10],[16,0,16,10],[17,0,17,10],[14,1,14,2],[15,1,15,2],[18,1,18,2],[19,1,19,2],[24,0,24,10],[25,0,25,10],[26,0,26,2],[26,3,26,10],[27,0,27,2],[27,3,27,6],[27,8,27,10],[21,0,21,10],[22,0,22,10],[23,1,23,2],[23,3,23,4],[23,5,23,7],[23,9,23,10],[31,0,31,10],[32,0,32,10],[33,0,33,2],[33,3,33,10],[34,0,34,2],[34,3,34,6],[34,8,34,10],[28,0,28,2],[28,3,28,10],[29,0,29,2],[29,3,29,6],[29,8,29,10],[30,0,30,10],[38,0,38,10],[39,0,39,2],[39,3,39,10],[40,0,40,2],[40,3,40,10],[41,0,41,2],[41,3,41,10],[35,0,35,2],[35,3,35,10],[36,0,36,2],[36,3,36,6],[36,8,36,10],[37,0,37,10],[44,0,44,2],[44,3,44,10],[45,0,45,2],[45,3,45,5],[45,6,45,7],[45,8,45,10],[42,0,42,2],[42,3,42,5],[42,6,42,7],[42,8,42,10],[43,0,43,2],[43,3,43,10],[49,0,49,10],[50,0,50,10],[51,0,52,10],[53,1,53,10],[54,0,54,10],[55,0,55,10],[46,0,46,2],[46,3,46,10],[47,0,47,2],[47,3,47,10],[48,0,48,2],[48,3,48,5],[48,6,48,7],[48,8,48,10],[62,0,62,10],[63,0,63,2],[63,3,63,10],[64,0,64,10],[65,0,65,10],[66,0,66,2],[66,3,66,10],[56,0,56,10],[57,0,57,10],[58,0,58,10],[59,0,59,10],[60,0,60,10],[61,0,61,10],[72,0,72,10],[73,0,73,2],[73,3,73,10],[74,0,74,10],[75,0,75,10],[67,0,67,10],[68,0,68,10],[69,0,69,10],[70,0,70,2],[70,3,70,10],[71,0,71,10]]}
[{"$f":"IF(Kryci_list_zadosti!C15<>0,Kryci_list_zadosti!C15,\"\")","v":""}]
[]
["IDENTIFIKAČNÍ ÚDAJE A CHARAKTERISTIKA ŽADATELE O DOTACI"]
["Název:"]
[]
["Právní forma:"]
[]
["IČO:"]
[]
["Adresa sídla a datové schránky"]
[null,"Ulice:",null,null,null,null,null,null,"č.p./č.o.:"]
[null,"Obec:"]
[null,"Část obce:"]
[null,"PSČ:"]
[null,"Kraj:"]
[null,"Datová schránka:"]
[]
["Další údaje"]
[null,"Telefon:"]
[null,"E-mail:"]
["Internetové stránky organizace:"]
[]
["Číslo účtu žadatele:"]
["Předčíslí účtu:",null,null,"Základní část účtu:",null,null,null,null,"Kód banky:"]
[]
["Statutární orgán (tj. statutární zástupci organizace, v případě potřeby řádky skryjte nebo doplňte):"]
["Jméno, příjmení, titul, funkce:"]
["Telefon:",null,null,null,null,null,null,"E-mail:"]
["Jméno, příjmení, titul, funkce:"]
["Telefon:",null,null,null,null,null,null,"E-mail:"]
[]
["Osoby jednající na základě plné moci či jiného pověření (pozn.: V případě potřeby řádky skryjte nebo doplňte.):"]
["Existuje osoba jednající na základě plné moci či jiného pověření?"]
["Jméno, příjmení, titul, funkce:"]
["Telefon:",null,null,null,null,null,null,"E-mail:"]
["Jméno, příjmení, titul, funkce:"]
["Telefon:",null,null,null,null,null,null,"E-mail:"]
[]
["Identifikace dalších osob – osoby, v nichž má žadatel podíl (pozn.: v případě potřeby řádky skryjte nebo doplňte):"]
["Existuje osoba, v níž má žadatel podíl?"]
["Název:"]
["Adresa (ulice, č.p./č.o., obec, PSČ):"]
["IČO:",null,null,null,null,null,"Výše podílu:"]
["Název:"]
["Adresa (ulice, č.p./č.o., obec, PSČ):"]
["IČO:",null,null,null,null,null,"Výše podílu:"]
["Název:"]
["Adresa (ulice, č.p./č.o., obec, PSČ):"]
["IČO:",null,null,null,null,null,"Výše podílu:"]
[]
["Oblast, ve které jsou služby žadatele poskytovány (pozn.: zaškrtněte relevantní možnosti):"]
[]
[]
[]
[]
["Cílová skupina žadatele (Pozn.: specifikujte):"]
[]
[]
["Působnost žadatele (pozn.: vyberte rozsah působnosti, který převažuje):"]
[]
[]
["Obdobné projekty realizované žadatelem o dotaci v roce 2023 a 2022:"]
["Projekt roku 2023"]
["Název projektu roku 2023:"]
["Stručný popis obsahu projektu 2023 (max. 1 500 znaků):"]
[]
["Celková částka nákladů na projekt 2023:"]
["Byl-li projekt 2023 podpořen z veřejných financí, uveďte název poskytovatele finanční podpory, název programu, ze kterého byl podpořen a evidenční číslo projektu:"]
[]
["Projekt roku 2022"]
["Název projektu roku 2022:"]
["Stručný popis obsahu projektu roku 2022 (max. 1 500 znaků):"]
[]
["Celková částka nákladů na projekt roku 2022:"]
["Byl-li projekt roku 2022 podpořen z veřejných financí, uveďte název poskytovatele finanční podpory, název programu, ze kterého byl podpořen a evidenční číslo projektu:"]

{"sheet":"Udaje_o_projektu","index":2,"n_rows":68,"n_cols":6,"rows_kept":68,"cut":false,"hidden":false,"merged":[[55,0,55,10],[56,0,56,10],[50,0,50,10],[51,0,51,10],[52,0,52,10],[53,0,53,10],[54,0,54,10],[67,0,67,2],[67,3,67,4],[67,5,67,8],[67,9,67,10],[64,0,64,4],[64,5,64,10],[65,0,65,4],[65,5,65,10],[66,0,66,4],[66,5,66,10],[12,0,12,2],[12,3,12,4],[12,6,12,10],[0,0,1,10],[2,0,2,10],[3,0,5,2],[3,3,5,10],[6,0,6,10],[7,0,8,2],[7,4,7,10],[8,4,8,10],[9,0,9,10],[10,0,10,2],[10,3,10,10],[11,0,11,2],[11,3,11,10],[24,0,24,10],[13,0,13,10],[14,0,14,10],[15,0,15,10],[16,0,16,10],[17,0,17,10],[18,0,18,10],[19,0,19,10],[20,0,20,10],[21,0,21,10],[22,0,22,10],[23,0,23,10],[35,0,35,10],[25,0,25,2],[25,3,25,10],[26,0,26,10],[27,0,27,10],[28,0,28,10],[29,0,29,10],[30,0,30,10],[31,0,31,10],[32,0,32,10],[33,0,33,10],[34,0,34,10],[36,0,36,10],[37,0,37,10],[38,0,38,10],[57,0,57,10],[58,0,58,10],[39,0,39,10],[40,0,40,10],[41,0,41,10],[42,0,42,10],[43,0,43,10],[44,0,44,10],[45,0,45,10],[46,0,46,10],[47,0,47,10],[48,0,48,10],[49,0,49,10],[63,0,63,4],[63,5,63,10],[62,0,62,4],[62,5,62,10],[61,0,61,10]]}
[{"$f":"IF(Kryci_list_zadosti!C15<>0,Kryci_list_zadosti!C15,\"\")","v":""}]
[]
["ÚDAJE O PROJEKTU, NA KTERÝ JE POŽADOVÁNA DOTACE V ROCE 2024"]
["Název projektu:"]
[]
[]
[]
["Doba realizace projektu:",null,null,"od:"]
[null,null,null,"do:"]
[]
["Realizátor projektu:"]
["Jméno, příjmení, titul, funkce:"]
["Telefon:",null,null,null,null,"E-mail:"]
[]
["Anotace projektu, tj. účel projektu a jeho obsah (max. 1 500 znaků):"]
[]
[]
["Věcné zaměření projektu a popis přenositelnosti projektu (max. 1 500 znaků):"]
[]
[]
["Cílová skupina projektu (včetně počtu účastníků cílové skupiny) a předpokládaný přínos projektu a jeho částí pro cílovou skupinu (max. 1 500 znaků):"]
[]
[]
["Působnost projektu (pozn.: vyberte rozsah působnosti, který převažuje):"]
[]
["Krajská (vyjmenujte):"]
[]
["Uveďte personální zabezpečení projektu a odbornosti řešitelského týmu (max. 1 500 znaků):"]
[]
[]
["Měřitelné cíle projektu a popis způsobu ověřování dosažení stanovených cílů (max. 1 500 znaků):"]
[]
[]
["Zdůvodnění potřebnosti projektu (max. 1 500 znaků):"]
[]
[]
["Popište klíčová rizika projektu (včetně odůvodnění) a popis způsobů minimalizace či eliminace těchto rizik, uveďte míru či pravděpodobnost jejich výskytu a dopadu na projekt (max. 1 500 znaků) :"]
[]
[]
["Předpokládaný počet podpořených žáků stanovený na základě provedené analýzy území (max. 1 500 znaků) :"]
[]
[]
["Informace, jakým způsobem žadatel navazuje či bude navazovat spolupráci se základními školami a školními jídelnami (max. 1 500 znaků) :"]
[]
[]
["Informace, jakým způsobem bude žadatel informovat zákonné zástupce žáků o možnosti poskytnutí podpory \n(max. 1 500 znaků) :"]
[]
[]
["Návrh konkrétních kritérií pro posouzení, zda se jedná o žáka, jehož rodina se ocitla v nepříznivé finanční situaci ve smyslu bodu 2.2 a 2.3 Výzvy (max. 1 500 znaků) :"]
[]
[]
["Zdůvodnění požadované částky dotace, která bude vycházet z předpokládaného počtu žáků a průměrné výše finančního limitu na  nákup potravin (max. 1 500 znaků) :"]
[]
[]
["Návrh průběžného sledování a vyhodnocení dopadu podpory školního stravování podpořených žáků na řádný průběh plnění školní docházky těchto žáků (max. 1 500 znaků) :"]
[]
[]
["Uveďte veškeré další podstatné údaje o projektu, zejména informace o tom, jakým způsobem bude prezentována dotace ministerstva ve výstupech projektu  (max. 1500 znaků):"]
[]
[]
[]
["Pokračující projekt"]
["2023",null,null,null,null,2022]
["Byl popisovaný projekt realizován v roce 2023?",null,null,null,null,"Byl popisovaný projekt realizován v roce 2022?"]
[]
["Byl projekt dotován Ministerstvem školství, mládeže a tělovýchovy (MŠMT) v roce 2023?",null,null,null,null,"Byl projekt dotován Ministerstvem školství, mládeže \na tělovýchovy (MŠMT) v roce 2022?"]
[]
["Výše poskytnuté dotace MŠMT:",null,null,null,null,"Výše poskytnuté dotace MŠMT:"]

{"sheet":"Popis aktivit projektu","index":3,"n_rows":231,"n_cols":5,"rows_kept":231,"cut":false,"hidden":false,"merged":[[8,0,8,2],[42,1,42,2],[2,0,2,2],[31,0,31,2],[32,0,32,2],[34,0,34,2],[35,1,35,2],[26,0,26,1],[28,0,28,2],[29,0,29,2],[23,1,23,2],[13,1,13,2],[14,1,14,2],[15,1,15,2],[16,1,16,2],[17,1,17,2],[18,1,18,2],[19,1,19,2],[20,1,20,2],[21,1,21,2],[22,1,22,2],[3,0,3,1],[5,0,5,2],[6,0,6,2],[9,0,9,2],[12,1,12,2],[11,0,11,2],[46,1,46,2],[49,0,49,1],[51,0,51,2],[52,0,52,2],[54,0,54,2],[55,0,55,2],[36,1,36,2],[37,1,37,2],[38,1,38,2],[39,1,39,2],[40,1,40,2],[41,1,41,2],[43,1,43,2],[44,1,44,2],[45,1,45,2],[63,1,63,2],[64,1,64,2],[65,1,65,2],[66,1,66,2],[67,1,67,2],[68,1,68,2],[57,0,57,2],[58,1,58,2],[59,1,59,2],[60,1,60,2],[61,1,61,2],[62,1,62,2],[80,0,80,2],[81,1,81,2],[82,1,82,2],[83,1,83,2],[84,1,84,2],[85,1,85,2],[69,1,69,2],[72,0,72,1],[74,0,74,2],[75,0,75,2],[77,0,77,2],[78,0,78,2],[92,1,92,2],[95,0,95,1],[97,0,97,2],[98,0,98,2],[100,0,100,2],[101,0,101,2],[86,1,86,2],[87,1,87,2],[88,1,88,2],[89,1,89,2],[90,1,90,2],[91,1,91,2],[109,1,109,2],[110,1,110,2],[111,1,111,2],[112,1,112,2],[113,1,113,2],[114,1,114,2],[103,0,103,2],[104,1,104,2],[105,1,105,2],[106,1,106,2],[107,1,107,2],[108,1,108,2],[126,0,126,2],[127,1,127,2],[128,1,128,2],[129,1,129,2],[130,1,130,2],[131,1,131,2],[115,1,115,2],[118,0,118,1],[120,0,120,2],[121,0,121,2],[123,0,123,2],[124,0,124,2],[138,1,138,2],[141,0,141,1],[143,0,143,2],[144,0,144,2],[146,0,146,2],[147,0,147,2],[132,1,132,2],[133,1,133,2],[134,1,134,2],[135,1,135,2],[136,1,136,2],[137,1,137,2],[155,1,155,2],[156,1,156,2],[157,1,157,2],[158,1,158,2],[159,1,159,2],[160,1,160,2],[149,0,149,2],[150,1,150,2],[151,1,151,2],[152,1,152,2],[153,1,153,2],[154,1,154,2],[172,0,172,2],[173,1,173,2],[174,1,174,2],[175,1,175,2],[176,1,176,2],[177,1,177,2],[161,1,161,2],[164,0,164,1],[166,0,166,2],[167,0,167,2],[169,0,169,2],[170,0,170,2],[184,1,184,2],[187,0,187,1],[189,0,189,2],[190,0,190,2],[192,0,192,2],[193,0,193,2],[178,1,178,2],[179,1,179,2],[180,1,180,2],[181,1,181,2],[182,1,182,2],[183,1,183,2],[203,1,203,2],[204,1,204,2],[205,1,205,2],[206,1,206,2],[195,0,195,2],[196,1,196,2],[197,1,197,2],[198,1,198,2],[199,1,199,2],[200,1,200,2],[2,4,2,11],[3,4,3,11],[0,0,1,2],[230,1,230,2],[224,1,224,2],[225,1,225,2],[226,1,226,2],[227,1,227,2],[228,1,228,2],[229,1,229,2],[218,0,218,2],[219,1,219,2],[220,1,220,2],[221,1,221,2],[222,1,222,2],[223,1,223,2],[207,1,207,2],[210,0,210,1],[212,0,212,2],[213,0,213,2],[215,0,215,2],[216,0,216,2],[201,1,201,2],[202,1,202,2]]}
[{"$f":"IF(Kryci_list_zadosti!C15<>0,Kryci_list_zadosti!C15,\"\")","v":""}]
[]
["PODROBNÝ POPIS JEDNOTLIVÝCH AKTIVIT PROJEKTU\n",null,null,null,"Klikněte na počet aktivit, které v rámci projektu budete realizovat."]
["Název aktivity č. 1:",null,null,null,"Pokud potřebujete více jak 10 aktivit, je třeba dokopírovat další tabulky ručně."]
[]
["Podrobný popis aktivity (max. 2500 znaků)"]
[]
[]
["Kvalitativní a kvantitativní indikátory aktivity (max. 1500 znaků)"]
[]
[]
["Harmonogram realizace aktivity "]
["Leden"]
["Únor"]
["Březen"]
["Duben"]
["Květen"]
["Červen"]
["Červenec"]
["Srpen"]
["Září"]
["Říjen"]
["Listopad"]
["Prosinec"]
[]
[]
["Název aktivity č. 2:"]
[]
["Podrobný popis aktivity (max. 2500 znaků)"]
[]
[]
["Kvalitativní a kvantitativní indikátory aktivity (max. 1500 znaků)"]
[]
[]
["Harmonogram realizace aktivity "]
["Leden"]
["Únor"]
["Březen"]
["Duben"]
["Květen"]
["Červen"]
["Červenec"]
["Srpen"]
["Září"]
["Říjen"]
["Listopad"]
["Prosinec"]
[]
[]
["Název aktivity č. 3:"]
[]
["Podrobný popis aktivity (max. 2500 znaků)"]
[]
[]
["Kvalitativní a kvantitativní indikátory aktivity (max. 1500 znaků)"]
[]
[]
["Harmonogram realizace aktivity "]
["Leden"]
["Únor"]
["Březen"]
["Duben"]
["Květen"]
["Červen"]
["Červenec"]
["Srpen"]
["Září"]
["Říjen"]
["Listopad"]
["Prosinec"]
[]
[]
["Název aktivity č. 4:"]
[]
["Podrobný popis aktivity (max. 2500 znaků)"]
[]
[]
["Kvalitativní a kvantitativní indikátory aktivity (max. 1500 znaků)"]
[]
[]
["Harmonogram realizace aktivity "]
["Leden"]
["Únor"]
["Březen"]
["Duben"]
["Květen"]
["Červen"]
["Červenec"]
["Srpen"]
["Září"]
["Říjen"]
["Listopad"]
["Prosinec"]
[]
[]
["Název aktivity č. 5:"]
[]
["Podrobný popis aktivity (max. 2500 znaků)"]
[]
[]
["Kvalitativní a kvantitativní indikátory aktivity (max. 1500 znaků)"]
[]
[]
["Harmonogram realizace aktivity "]
["Leden"]
["Únor"]
["Březen"]
["Duben"]
["Květen"]
["Červen"]
["Červenec"]
["Srpen"]
["Září"]
["Říjen"]
["Listopad"]
["Prosinec"]
[]
[]
["Název aktivity č. 6:"]
[]
["Podrobný popis aktivity (max. 2500 znaků)"]
[]
[]
["Kvalitativní a kvantitativní indikátory aktivity (max. 1500 znaků)"]
[]
[]
["Harmonogram realizace aktivity "]
["Leden"]
["Únor"]
["Březen"]
["Duben"]
["Květen"]
["Červen"]
["Červenec"]
["Srpen"]
["Září"]
["Říjen"]
["Listopad"]
["Prosinec"]
[]
[]
["Název aktivity č. 7:"]
[]
["Podrobný popis aktivity (max. 2500 znaků)"]
[]
[]
["Kvalitativní a kvantitativní indikátory aktivity (max. 1500 znaků)"]
[]
[]
["Harmonogram realizace aktivity "]
["Leden"]
["Únor"]
["Březen"]
["Duben"]
["Květen"]
["Červen"]
["Červenec"]
["Srpen"]
["Září"]
["Říjen"]
["Listopad"]
["Prosinec"]
[]
[]
["Název aktivity č. 8:"]
[]
["Podrobný popis aktivity (max. 2500 znaků)"]
[]
[]
["Kvalitativní a kvantitativní indikátory aktivity (max. 1500 znaků)"]
[]
[]
["Harmonogram realizace aktivity "]
["Leden"]
["Únor"]
["Březen"]
["Duben"]
["Květen"]
["Červen"]
["Červenec"]
["Srpen"]
["Září"]
["Říjen"]
["Listopad"]
["Prosinec"]
[]
[]
["Název aktivity č. 9:"]
[]
["Podrobný popis aktivity (max. 2500 znaků)"]
[]
[]
["Kvalitativní a kvantitativní indikátory aktivity (max. 1500 znaků)"]
[]
[]
["Harmonogram realizace aktivity "]
["Leden"]
["Únor"]
["Březen"]
["Duben"]
["Květen"]
["Červen"]
["Červenec"]
["Srpen"]
["Září"]
["Říjen"]
["Listopad"]
["Prosinec"]
[]
[]
["Název aktivity č. 10:"]
[]
["Podrobný popis aktivity (max. 2500 znaků)"]
[]
[]
["Kvalitativní a kvantitativní indikátory aktivity (max. 1500 znaků)"]
[]
[]
["Harmonogram realizace aktivity "]
["Leden"]
["Únor"]
["Březen"]
["Duben"]
["Květen"]
["Červen"]
["Červenec"]
["Srpen"]
["Září"]
["Říjen"]
["Listopad"]
["Prosinec"]

{"sheet":"HPP","index":4,"n_rows":291,"n_cols":7,"rows_kept":291,"cut":false,"hidden":false,"merged":[[2,6,2,15],[6,1,6,2],[4,1,4,4],[5,1,5,2],[9,1,9,2],[9,3,9,4],[3,1,3,4],[2,0,2,4],[8,1,8,4],[0,0,1,4],[29,1,29,4],[30,1,30,4],[22,1,22,2],[22,3,22,4],[18,1,18,2],[19,1,19,2],[16,1,16,4],[17,1,17,4],[23,1,23,2],[23,3,23,4],[24,1,24,2],[24,3,24,4],[27,1,27,2],[27,3,27,4],[11,1,11,2],[10,1,10,2],[10,3,10,4],[11,3,11,4],[14,1,14,2],[14,3,14,4],[7,1,7,4],[20,1,20,4],[21,1,21,4],[63,1,63,2],[63,3,63,4],[64,1,64,2],[64,3,64,4],[67,1,67,2],[67,3,67,4],[73,1,73,4],[75,1,75,2],[75,3,75,4],[104,1,104,2],[104,3,104,4],[111,1,111,4],[112,1,112,4],[87,1,87,2],[91,3,91,4],[98,1,98,4],[99,1,99,4],[100,1,100,2],[93,1,93,2],[93,3,93,4],[96,1,96,2],[96,3,96,4],[102,1,102,4],[103,1,103,4],[105,1,105,2],[105,3,105,4],[106,1,106,2],[106,3,106,4],[101,1,101,2],[109,1,109,2],[109,3,109,4],[144,1,144,4],[145,1,145,4],[129,1,129,2],[130,1,130,2],[133,3,133,4],[140,1,140,4],[141,1,141,4],[142,1,142,2],[146,3,146,4],[131,1,131,4],[132,1,132,4],[134,1,134,2],[134,3,134,4],[135,1,135,2],[135,3,135,4],[138,1,138,2],[138,3,138,4],[153,1,153,4],[146,1,146,2],[195,1,195,4],[188,1,188,2],[188,3,188,4],[175,1,175,2],[183,1,183,4],[184,1,184,2],[185,1,185,2],[147,1,147,2],[147,3,147,4],[148,1,148,2],[148,3,148,4],[151,1,151,2],[151,3,151,4],[157,1,157,4],[158,1,158,4],[160,1,160,2],[160,3,160,4],[161,1,161,2],[161,3,161,4],[164,1,164,2],[164,3,164,4],[173,1,173,4],[31,1,31,2],[32,1,32,2],[35,1,35,2],[35,3,35,4],[49,3,49,4],[46,1,46,2],[44,1,44,4],[45,1,45,2],[43,1,43,4],[33,1,33,4],[34,1,34,4],[36,1,36,2],[36,3,36,4],[37,1,37,2],[37,3,37,4],[40,1,40,2],[40,3,40,4],[47,1,47,4],[48,1,48,4],[230,1,230,2],[230,3,230,4],[237,1,237,4],[114,1,114,2],[117,1,117,2],[127,1,127,4],[128,1,128,4],[117,3,117,4],[175,3,175,4],[182,1,182,4],[154,1,154,4],[159,3,159,4],[169,1,169,4],[170,1,170,4],[172,1,172,2],[171,1,171,2],[159,1,159,2],[156,1,156,2],[155,1,155,2],[143,1,143,2],[133,1,133,2],[217,1,217,2],[217,3,217,4],[196,1,196,4],[284,1,284,4],[266,1,266,4],[267,1,267,4],[268,1,268,2],[269,1,269,2],[253,1,253,4],[254,1,254,4],[255,1,255,2],[256,1,256,2],[264,1,264,2],[264,3,264,4],[259,1,259,2],[259,3,259,4],[270,1,270,4],[271,1,271,4],[273,1,273,2],[273,3,273,4],[274,1,274,2],[274,3,274,4],[277,1,277,2],[277,3,277,4],[283,1,283,4],[50,3,50,4],[51,1,51,2],[51,3,51,4],[54,1,54,2],[54,3,54,4],[49,1,49,2],[76,3,76,4],[77,1,77,2],[77,3,77,4],[56,1,56,4],[57,1,57,4],[58,1,58,2],[59,1,59,2],[50,1,50,2],[74,1,74,4],[76,1,76,2],[71,1,71,2],[72,1,72,2],[69,1,69,4],[70,1,70,4],[62,1,62,2],[62,3,62,4],[60,1,60,4],[61,1,61,4],[80,1,80,2],[80,3,80,4],[89,1,89,4],[90,1,90,4],[92,1,92,2],[92,3,92,4],[91,1,91,2],[88,1,88,2],[86,1,86,4],[85,1,85,4],[115,1,115,4],[116,1,116,4],[118,1,118,2],[118,3,118,4],[119,1,119,2],[119,3,119,4],[122,1,122,2],[122,3,122,4],[113,1,113,2],[174,1,174,4],[176,1,176,2],[176,3,176,4],[177,1,177,2],[177,3,177,4],[180,1,180,2],[180,3,180,4],[186,1,186,4],[187,1,187,4],[189,1,189,2],[189,3,189,4],[190,1,190,2],[190,3,190,4],[193,1,193,2],[193,3,193,4],[199,1,199,4],[197,1,197,2],[198,1,198,2],[200,1,200,4],[202,1,202,2],[202,3,202,4],[203,1,203,2],[203,3,203,4],[206,1,206,2],[206,3,206,4],[215,1,215,4],[211,1,211,4],[212,1,212,4],[213,1,213,2],[214,1,214,2],[201,1,201,2],[201,3,201,4],[216,1,216,4],[218,1,218,2],[218,3,218,4],[219,1,219,2],[219,3,219,4],[222,1,222,2],[222,3,222,4],[228,1,228,4],[229,1,229,4],[225,1,225,4],[224,1,224,4],[226,1,226,2],[227,1,227,2],[231,1,231,2],[231,3,231,4],[232,1,232,2],[232,3,232,4],[235,1,235,2],[235,3,235,4],[241,1,241,4],[242,1,242,4],[244,1,244,2],[244,3,244,4],[238,1,238,4],[239,1,239,2],[240,1,240,2],[243,1,243,2],[243,3,243,4],[286,1,286,2],[286,3,286,4],[287,1,287,2],[287,3,287,4],[290,1,290,2],[290,3,290,4],[245,1,245,2],[245,3,245,4],[248,1,248,2],[248,3,248,4],[257,1,257,4],[258,1,258,4],[260,1,260,2],[260,3,260,4],[261,1,261,2],[261,3,261,4],[281,1,281,2],[282,1,282,2],[285,1,285,2],[285,3,285,4],[272,1,272,2],[272,3,272,4],[279,1,279,4],[280,1,280,4]]}
[{"$f":"IF(Kryci_list_zadosti!C15<>0,Kryci_list_zadosti!C15,\"\")","v":""}]
[]
["ROZPOČET PROJEKTU - Osobní náklady na hlavní pracovní poměr (v Kč)",null,null,null,null,null,"Klikněte na příšlušný počet zaměstnanců na HPP, pro který je nutné vyplnit formulář, pokud nestačí přednastavený počet 1 - 3:\n"]
["Funkce"]
["Popis činnosti",null,null,null,null,1]
["Dosažené vzdělání",null,null,"Platová třída (NV 341/2017 Sb.)",null,null,"Pokud potřebujete více jak 21 HPP, je třeba dokopírovat další tabulky ručně."]
["Doba odborné praxe",null,null,"Platový stupeň (NV 341/2017 Sb.)"]
["Počet měsíců práce na projektu"]
["Výše úvazku"]
[null,"za projekt celkem",null,"z toho z dotace"]
["Průměrný měsíční plat/mzda \nna daný úvazek (bez odvodů a FKSP)"]
["Průměrný měsíční plat/mzda \npřepočtený na 1 úvazek (bez odvodů a FKSP)",{"$f":"IFERROR(B11/B9,0)","v":0},null,{"$f":"IFERROR(D11/B9,0)","v":0}]
["Zákonné odvody",null,{"$f":"IFERROR(B13/B11,0)","v":0},null,{"$f":"IFERROR(D13/D11,0)","v":0}]
["Příděl do FKSP (tvoří-li ho povinně žadatel)",null,{"$f":"IFERROR(B14/B11,0)","v":0},null,{"$f":"IFERROR(D14/D11,0)","v":0}]
["Mzdové náklady HPP celkem",{"$f":"(B11+B13+B14)*B8","v":0},null,{"$f":"(D11+D13+D14)*B8","v":0}]
[]
["Funkce",null,null,null,null,2]
["Popis činnosti"]
["Dosažené vzdělání",null,null,"Platová třída (NV 341/2017 Sb.)"]
["Doba odborné praxe",null,null,"Platový stupeň (NV 341/2017 Sb.)"]
["Počet měsíců práce na projektu"]
["Výše úvazku"]
[null,"za projekt celkem",null,"z toho z dotace"]
["Průměrný měsíční plat/mzda \nna daný úvazek (bez odvodů a FKSP)"]
["Průměrný měsíční plat/mzda \npřepočtený na 1 úvazek (bez odvodů a FKSP)",{"$f":"IFERROR(B24/B22,0)","v":0},null,{"$f":"IFERROR(D24/B22,0)","v":0}]
["Zákonné odvody",null,{"$f":"IFERROR(B26/B24,0)","v":0},null,{"$f":"IFERROR(D26/D24,0)","v":0}]
["Příděl do FKSP (tvoří-li ho povinně žadatel)",null,{"$f":"IFERROR(B27/B24,0)","v":0},null,{"$f":"IFERROR(D27/D24,0)","v":0}]
["Mzdové náklady HPP celkem",{"$f":"(B24+B26+B27)*B21","v":0},null,{"$f":"(D24+D26+D27)*B21","v":0}]
[]
["Funkce",null,null,null,null,3]
["Popis činnosti"]
["Dosažené vzdělání",null,null,"Platová třída (NV 341/2017 Sb.)"]
["Doba odborné praxe",null,null,"Platový stupeň (NV 341/2017 Sb.)"]
["Počet měsíců práce na projektu"]
["Výše úvazku"]
[null,"za projekt celkem",null,"z toho z dotace"]
["Průměrný měsíční plat/mzda \nna daný úvazek (bez odvodů a FKSP)"]
["Průměrný měsíční plat/mzda \npřepočtený na 1 úvazek (bez odvodů a FKSP)",{"$f":"IFERROR(B37/B35,0)","v":0},null,{"$f":"IFERROR(D37/B35,0)","v":0}]
["Zákonné odvody",null,{"$f":"IFERROR(B39/B37,0)","v":0},null,{"$f":"IFERROR(D39/D37,0)","v":0}]
["Příděl do FKSP (tvoří-li ho povinně žadatel)",null,{"$f":"IFERROR(B40/B37,0)","v":0},null,{"$f":"IFERROR(D40/D37,0)","v":0}]
["Mzdové náklady HPP celkem",{"$f":"(B37+B39+B40)*B34","v":0},null,{"$f":"(D37+D39+D40)*B34","v":0}]
[]
[]
["Funkce",null,null,null,null,4]
["Popis činnosti"]
["Dosažené vzdělání",null,null,"Platová třída (NV 341/2017 Sb.)"]
["Doba odborné praxe",null,null,"Platový stupeň (NV 341/2017 Sb.)"]
["Počet měsíců práce na projektu"]
["Výše úvazku"]
[null,"za projekt celkem",null,"z toho z dotace"]
["Průměrný měsíční plat/mzda \nna daný úvazek (bez odvodů a FKSP)"]
["Průměrný měsíční plat/mzda \npřepočtený na 1 úvazek (bez odvodů a FKSP)",{"$f":"IFERROR(B51/B49,0)","v":0},null,{"$f":"IFERROR(D51/B49,0)","v":0}]
["Zákonné odvody",null,{"$f":"IFERROR(B53/B51,0)","v":0},null,{"$f":"IFERROR(D53/D51,0)","v":0}]
["Příděl do FKSP (tvoří-li ho povinně žadatel)",null,{"$f":"IFERROR(B54/B51,0)","v":0},null,{"$f":"IFERROR(D54/D51,0)","v":0}]
["Mzdové náklady HPP celkem",{"$f":"(B51+B53+B54)*B48","v":0},null,{"$f":"(D51+D53+D54)*B48","v":0}]
[]
["Funkce",null,null,null,null,5]
["Popis činnosti"]
["Dosažené vzdělání",null,null,"Platová třída (NV 341/2017 Sb.)"]
["Doba odborné praxe",null,null,"Platový stupeň (NV 341/2017 Sb.)"]
["Počet měsíců práce na projektu"]
["Výše úvazku"]
[null,"za projekt celkem",null,"z toho z dotace"]
["Průměrný měsíční plat/mzda \nna daný úvazek (bez odvodů a FKSP)"]
["Průměrný měsíční plat/mzda \npřepočtený na 1 úvazek (bez odvodů a FKSP)",{"$f":"IFERROR(B64/B62,0)","v":0},null,{"$f":"IFERROR(D64/B62,0)","v":0}]
["Zákonné odvody",null,{"$f":"IFERROR(B66/B64,0)","v":0},null,{"$f":"IFERROR(D66/D64,0)","v":0}]
["Příděl do FKSP (tvoří-li ho povinně žadatel)",null,{"$f":"IFERROR(B67/B64,0)","v":0},null,{"$f":"IFERROR(D67/D64,0)","v":0}]
["Mzdové náklady HPP celkem",{"$f":"(B64+B66+B67)*B61","v":0},null,{"$f":"(D64+D66+D67)*B61","v":0}]
[]
["Funkce",null,null,null,null,6]
["Popis činnosti"]
["Dosažené vzdělání",null,null,"Platová třída (NV 341/2017 Sb.)"]
["Doba odborné praxe",null,null,"Platový stupeň (NV 341/2017 Sb.)"]
["Počet měsíců práce na projektu"]
["Výše úvazku"]
[null,"za projekt celkem",null,"z toho z dotace"]
["Průměrný měsíční plat/mzda \nna daný úvazek (bez odvodů a FKSP)"]
["Průměrný měsíční plat/mzda \npřepočtený na 1 úvazek (bez odvodů a FKSP)",{"$f":"IFERROR(B77/B75,0)","v":0},null,{"$f":"IFERROR(D77/B75,0)","v":0}]
["Zákonné odvody",null,{"$f":"IFERROR(B79/B77,0)","v":0},null,{"$f":"IFERROR(D79/D77,0)","v":0}]
["Příděl do FKSP (tvoří-li ho povinně žadatel)",null,{"$f":"IFERROR(B80/B77,0)","v":0},null,{"$f":"IFERROR(D80/D77,0)","v":0}]
["Mzdové náklady HPP celkem",{"$f":"(B77+B79+B80)*B74","v":0},null,{"$f":"(D77+D79+D80)*B74","v":0}]
[]
[]
[]
[]
["Funkce",null,null,null,null,7]
["Popis činnosti"]
["Dosažené vzdělání",null,null,"Platová třída (NV 341/2017 Sb.)"]
["Doba odborné praxe",null,null,"Platový stupeň (NV 341/2017 Sb.)"]
["Počet měsíců práce na projektu"]
["Výše úvazku"]
[null,"za projekt celkem",null,"z toho z dotace"]
["Průměrný měsíční plat/mzda \nna daný úvazek (bez odvodů a FKSP)"]
["Průměrný měsíční plat/mzda \npřepočtený na 1 úvazek (bez odvodů a FKSP)",{"$f":"IFERROR(B93/B91,0)","v":0},null,{"$f":"IFERROR(D93/B91,0)","v":0}]
["Zákonné odvody",null,{"$f":"IFERROR(B95/B93,0)","v":0},null,{"$f":"IFERROR(D95/D93,0)","v":0}]
["Příděl do FKSP (tvoří-li ho povinně žadatel)",null,{"$f":"IFERROR(B96/B93,0)","v":0},null,{"$f":"IFERROR(D96/D93,0)","v":0}]
["Mzdové náklady HPP celkem",{"$f":"(B93+B95+B96)*B90","v":0},null,{"$f":"(D93+D95+D96)*B90","v":0}]
[]
["Funkce",null,null,null,null,8]
["Popis činnosti"]
["Dosažené vzdělání",null,null,"Platová třída (NV 341/2017 Sb.)"]
["Doba odborné praxe",null,null,"Platový stupeň (NV 341/2017 Sb.)"]
["Počet měsíců práce na projektu"]
["Výše úvazku"]
[null,"za projekt celkem",null,"z toho z dotace"]
["Průměrný měsíční plat/mzda \nna daný úvazek (bez odvodů a FKSP)"]
["Průměrný měsíční plat/mzda \npřepočtený na 1 úvazek (bez odvodů a FKSP)",{"$f":"IFERROR(B106/B104,0)","v":0},null,{"$f":"IFERROR(D106/B104,0)","v":0}]
["Zákonné odvody",null,{"$f":"IFERROR(B108/B106,0)","v":0},null,{"$f":"IFERROR(D108/D106,0)","v":0}]
["Příděl do FKSP (tvoří-li ho povinně žadatel)",null,{"$f":"IFERROR(B109/B106,0)","v":0},null,{"$f":"IFERROR(D109/D106,0)","v":0}]
["Mzdové náklady HPP celkem",{"$f":"(B106+B108+B109)*B103","v":0},null,{"$f":"(D106+D108+D109)*B103","v":0}]
[]
["Funkce",null,null,null,null,9]
["Popis činnosti"]
["Dosažené vzdělání",null,null,"Platová třída (NV 341/2017 Sb.)"]
["Doba odborné praxe",null,null,"Platový stupeň (NV 341/2017 Sb.)"]
["Počet měsíců práce na projektu"]
["Výše úvazku"]
[null,"za projekt celkem",null,"z toho z dotace"]
["Průměrný měsíční plat/mzda \nna daný úvazek (bez odvodů a FKSP)"]
["Průměrný měsíční plat/mzda \npřepočtený na 1 úvazek (bez odvodů a FKSP)",{"$f":"IFERROR(B119/B117,0)","v":0},null,{"$f":"IFERROR(D119/B117,0)","v":0}]
["Zákonné odvody",null,{"$f":"IFERROR(B121/B119,0)","v":0},null,{"$f":"IFERROR(D121/D119,0)","v":0}]
["Příděl do FKSP (tvoří-li ho povinně žadatel)",null,{"$f":"IFERROR(B122/B119,0)","v":0},null,{"$f":"IFERROR(D122/D119,0)","v":0}]
["Mzdové náklady HPP celkem",{"$f":"(B119+B121+B122)*B116","v":0},null,{"$f":"(D119+D121+D122)*B116","v":0}]
[]
[]
[]
[]
["Funkce",null,null,null,null,10]
["Popis činnosti"]
["Dosažené vzdělání",null,null,"Platová třída (NV 341/2017 Sb.)"]
["Doba odborné praxe",null,null,"Platový stupeň (NV 341/2017 Sb.)"]
["Počet měsíců práce na projektu"]
["Výše úvazku"]
[null,"za projekt celkem",null,"z toho z dotace"]
["Průměrný měsíční plat/mzda \nna daný úvazek (bez odvodů a FKSP)"]
["Průměrný měsíční plat/mzda \npřepočtený na 1 úvazek (bez odvodů a FKSP)",{"$f":"IFERROR(B135/B133,0)","v":0},null,{"$f":"IFERROR(D135/B133,0)","v":0}]
["Zákonné odvody",null,{"$f":"IFERROR(B137/B135,0)","v":0},null,{"$f":"IFERROR(D137/D135,0)","v":0}]
["Příděl do FKSP (tvoří-li ho povinně žadatel)",null,{"$f":"IFERROR(B138/B135,0)","v":0},null,{"$f":"IFERROR(D138/D135,0)","v":0}]
["Mzdové náklady HPP celkem",{"$f":"(B135+B137+B138)*B132","v":0},null,{"$f":"(D135+D137+D138)*B132","v":0}]
[]
["Funkce",null,null,null,null,11]
["Popis činnosti"]
["Dosažené vzdělání",null,null,"Platová třída (NV 341/2017 Sb.)"]
["Doba odborné praxe",null,null,"Platový stupeň (NV 341/2017 Sb.)"]
["Počet měsíců práce na projektu"]
["Výše úvazku"]
[null,"za projekt celkem",null,"z toho z dotace"]
["Průměrný měsíční plat/mzda \nna daný úvazek (bez odvodů a FKSP)"]
["Průměrný měsíční plat/mzda \npřepočtený na 1 úvazek (bez odvodů a FKSP)",{"$f":"IFERROR(B148/B146,0)","v":0},null,{"$f":"IFERROR(D148/B146,0)","v":0}]
["Zákonné odvody",null,{"$f":"IFERROR(B150/B148,0)","v":0},null,{"$f":"IFERROR(D150/D148,0)","v":0}]
["Příděl do FKSP (tvoří-li ho povinně žadatel)",null,{"$f":"IFERROR(B151/B148,0)","v":0},null,{"$f":"IFERROR(D151/D148,0)","v":0}]
["Mzdové náklady HPP celkem",{"$f":"(B148+B150+B151)*B145","v":0},null,{"$f":"(D148+D150+D151)*B145","v":0}]
[]
["Funkce",null,null,null,null,12]
["Popis činnosti"]
["Dosažené vzdělání",null,null,"Platová třída (NV 341/2017 Sb.)"]
["Doba odborné praxe",null,null,"Platový stupeň (NV 341/2017 Sb.)"]
["Počet měsíců práce na projektu"]
["Výše úvazku"]
[null,"za projekt celkem",null,"z toho z dotace"]
["Průměrný měsíční plat/mzda \nna daný úvazek (bez odvodů a FKSP)"]
["Průměrný měsíční plat/mzda \npřepočtený na 1 úvazek (bez odvodů a FKSP)",{"$f":"IFERROR(B161/B159,0)","v":0},null,{"$f":"IFERROR(D161/B159,0)","v":0}]
["Zákonné odvody",null,{"$f":"IFERROR(B163/B161,0)","v":0},null,{"$f":"IFERROR(D163/D161,0)","v":0}]
["Příděl do FKSP (tvoří-li ho povinně žadatel)",null,{"$f":"IFERROR(B164/B161,0)","v":0},null,{"$f":"IFERROR(D164/D161,0)","v":0}]
["Mzdové náklady HPP celkem",{"$f":"(B161+B163+B164)*B158","v":0},null,{"$f":"(D161+D163+D164)*B158","v":0}]
[]
[]
[]
[]
["Funkce",null,null,null,null,13]
["Popis činnosti"]
["Dosažené vzdělání",null,null,"Platová třída (NV 341/2017 Sb.)"]
["Doba odborné praxe",null,null,"Platový stupeň (NV 341/2017 Sb.)"]
["Počet měsíců práce na projektu"]
["Výše úvazku"]
[null,"za projekt celkem",null,"z toho z dotace"]
["Průměrný měsíční plat/mzda \nna daný úvazek (bez odvodů a FKSP)"]
["Průměrný měsíční plat/mzda \npřepočtený na 1 úvazek (bez odvodů a FKSP)",{"$f":"IFERROR(B177/B175,0)","v":0},null,{"$f":"IFERROR(D177/B175,0)","v":0}]
["Zákonné odvody",null,{"$f":"IFERROR(B179/B177,0)","v":0},null,{"$f":"IFERROR(D179/D177,0)","v":0}]
["Příděl do FKSP (tvoří-li ho povinně žadatel)",null,{"$f":"IFERROR(B180/B177,0)","v":0},null,{"$f":"IFERROR(D180/D177,0)","v":0}]
["Mzdové náklady HPP celkem",{"$f":"(B177+B179+B180)*B174","v":0},null,{"$f":"(D177+D179+D180)*B174","v":0}]
[]
["Funkce",null,null,null,null,14]
["Popis činnosti"]
["Dosažené vzdělání",null,null,"Platová třída (NV 341/2017 Sb.)"]
["Doba odborné praxe",null,null,"Platový stupeň (NV 341/2017 Sb.)"]
["Počet měsíců práce na projektu"]
["Výše úvazku"]
[null,"za projekt celkem",null,"z toho z dotace"]
["Průměrný měsíční plat/mzda \nna daný úvazek (bez odvodů a FKSP)"]
["Průměrný měsíční plat/mzda \npřepočtený na 1 úvazek (bez odvodů a FKSP)",{"$f":"IFERROR(B190/B188,0)","v":0},null,{"$f":"IFERROR(D190/B188,0)","v":0}]
["Zákonné odvody",null,{"$f":"IFERROR(B192/B190,0)","v":0},null,{"$f":"IFERROR(D192/D190,0)","v":0}]
["Příděl do FKSP (tvoří-li ho povinně žadatel)",null,{"$f":"IFERROR(B193/B190,0)","v":0},null,{"$f":"IFERROR(D193/D190,0)","v":0}]
["Mzdové náklady HPP celkem",{"$f":"(B190+B192+B193)*B187","v":0},null,{"$f":"(D190+D192+D193)*B187","v":0}]
[]
["Funkce",null,null,null,null,15]
["Popis činnosti"]
["Dosažené vzdělání",null,null,"Platová třída (NV 341/2017 Sb.)"]
["Doba odborné praxe",null,null,"Platový stupeň (NV 341/2017 Sb.)"]
["Počet měsíců práce na projektu"]
["Výše úvazku"]
[null,"za projekt celkem",null,"z toho z dotace"]
["Průměrný měsíční plat/mzda \nna daný úvazek (bez odvodů a FKSP)"]
["Průměrný měsíční plat/mzda \npřepočtený na 1 úvazek (bez odvodů a FKSP)",{"$f":"IFERROR(B203/B201,0)","v":0},null,{"$f":"IFERROR(D203/B201,0)","v":0}]
["Zákonné odvody",null,{"$f":"IFERROR(B205/B203,0)","v":0},null,{"$f":"IFERROR(D205/D203,0)","v":0}]
["Příděl do FKSP (tvoří-li ho povinně žadatel)",null,{"$f":"IFERROR(B206/B203,0)","v":0},null,{"$f":"IFERROR(D206/D203,0)","v":0}]
["Mzdové náklady HPP celkem",{"$f":"(B203+B205+B206)*B200","v":0},null,{"$f":"(D203+D205+D206)*B200","v":0}]
[]
[]
[]
[]
["Funkce",null,null,null,null,16]
["Popis činnosti"]
["Dosažené vzdělání",null,null,"Platová třída (NV 341/2017 Sb.)"]
["Doba odborné praxe",null,null,"Platový stupeň (NV 341/2017 Sb.)"]
["Počet měsíců práce na projektu"]
["Výše úvazku"]
[null,"za projekt celkem",null,"z toho z dotace"]
["Průměrný měsíční plat/mzda \nna daný úvazek (bez odvodů a FKSP)"]
["Průměrný měsíční plat/mzda \npřepočtený na 1 úvazek (bez odvodů a FKSP)",{"$f":"IFERROR(B219/B217,0)","v":0},null,{"$f":"IFERROR(D219/B217,0)","v":0}]
["Zákonné odvody",null,{"$f":"IFERROR(B221/B219,0)","v":0},null,{"$f":"IFERROR(D221/D219,0)","v":0}]
["Příděl do FKSP (tvoří-li ho povinně žadatel)",null,{"$f":"IFERROR(B222/B219,0)","v":0},null,{"$f":"IFERROR(D222/D219,0)","v":0}]
["Mzdové náklady HPP celkem",{"$f":"(B219+B221+B222)*B216","v":0},null,{"$f":"(D219+D221+D222)*B216","v":0}]
[]
["Funkce",null,null,null,null,17]
["Popis činnosti"]
["Dosažené vzdělání",null,null,"Platová třída (NV 341/2017 Sb.)"]
["Doba odborné praxe",null,null,"Platový stupeň (NV 341/2017 Sb.)"]
["Počet měsíců práce na projektu"]
["Výše úvazku"]
[null,"za projekt celkem",null,"z toho z dotace"]
["Průměrný měsíční plat/mzda \nna daný úvazek (bez odvodů a FKSP)"]
["Průměrný měsíční plat/mzda \npřepočtený na 1 úvazek (bez odvodů a FKSP)",{"$f":"IFERROR(B232/B230,0)","v":0},null,{"$f":"IFERROR(D232/B230,0)","v":0}]
["Zákonné odvody",null,{"$f":"IFERROR(B234/B232,0)","v":0},null,{"$f":"IFERROR(D234/D232,0)","v":0}]
["Příděl do FKSP (tvoří-li ho povinně žadatel)",null,{"$f":"IFERROR(B235/B232,0)","v":0},null,{"$f":"IFERROR(D235/D232,0)","v":0}]
["Mzdové náklady HPP celkem",{"$f":"(B232+B234+B235)*B229","v":0},null,{"$f":"(D232+D234+D235)*B229","v":0}]
[]
["Funkce",null,null,null,null,18]
["Popis činnosti"]
["Dosažené vzdělání",null,null,"Platová třída (NV 341/2017 Sb.)"]
["Doba odborné praxe",null,null,"Platový stupeň (NV 341/2017 Sb.)"]
["Počet měsíců práce na projektu"]
["Výše úvazku"]
[null,"za projekt celkem",null,"z toho z dotace"]
["Průměrný měsíční plat/mzda \nna daný úvazek (bez odvodů a FKSP)"]
["Průměrný měsíční plat/mzda \npřepočtený na 1 úvazek (bez odvodů a FKSP)",{"$f":"IFERROR(B245/B243,0)","v":0},null,{"$f":"IFERROR(D245/B243,0)","v":0}]
["Zákonné odvody",null,{"$f":"IFERROR(B247/B245,0)","v":0},null,{"$f":"IFERROR(D247/D245,0)","v":0}]
["Příděl do FKSP (tvoří-li ho povinně žadatel)",null,{"$f":"IFERROR(B248/B245,0)","v":0},null,{"$f":"IFERROR(D248/D245,0)","v":0}]
["Mzdové náklady HPP celkem",{"$f":"(B245+B247+B248)*B242","v":0},null,{"$f":"(D245+D247+D248)*B242","v":0}]
[]
[]
[]
[]
["Funkce",null,null,null,null,19]
["Popis činnosti"]
["Dosažené vzdělání",null,null,"Platová třída (NV 341/2017 Sb.)"]
["Doba odborné praxe",null,null,"Platový stupeň (NV 341/2017 Sb.)"]
["Počet měsíců práce na projektu"]
["Výše úvazku"]
[null,"za projekt celkem",null,"z toho z dotace"]
["Průměrný měsíční plat/mzda \nna daný úvazek (bez odvodů a FKSP)"]
["Průměrný měsíční plat/mzda \npřepočtený na 1 úvazek (bez odvodů a FKSP)",{"$f":"IFERROR(B261/B259,0)","v":0},null,{"$f":"IFERROR(D261/B259,0)","v":0}]
["Zákonné odvody",null,{"$f":"IFERROR(B263/B261,0)","v":0},null,{"$f":"IFERROR(D263/D261,0)","v":0}]
["Příděl do FKSP (tvoří-li ho povinně žadatel)",null,{"$f":"IFERROR(B264/B261,0)","v":0},null,{"$f":"IFERROR(D264/D261,0)","v":0}]
["Mzdové náklady HPP celkem",{"$f":"(B261+B263+B264)*B258","v":0},null,{"$f":"(D261+D263+D264)*B258","v":0}]
[]
["Funkce",null,null,null,null,20]
["Popis činnosti"]
["Dosažené vzdělání",null,null,"Platová třída (NV 341/2017 Sb.)"]
["Doba odborné praxe",null,null,"Platový stupeň (NV 341/2017 Sb.)"]
["Počet měsíců práce na projektu"]
["Výše úvazku"]
[null,"za projekt celkem",null,"z toho z dotace"]
["Průměrný měsíční plat/mzda \nna daný úvazek (bez odvodů a FKSP)"]
["Průměrný měsíční plat/mzda \npřepočtený na 1 úvazek (bez odvodů a FKSP)",{"$f":"IFERROR(B274/B272,0)","v":0},null,{"$f":"IFERROR(D274/B272,0)","v":0}]
["Zákonné odvody",null,{"$f":"IFERROR(B276/B274,0)","v":0},null,{"$f":"IFERROR(D276/D274,0)","v":0}]
["Příděl do FKSP (tvoří-li ho povinně žadatel)",null,{"$f":"IFERROR(B277/B274,0)","v":0},null,{"$f":"IFERROR(D277/D274,0)","v":0}]
["Mzdové náklady HPP celkem",{"$f":"(B274+B276+B277)*B271","v":0},null,{"$f":"(D274+D276+D277)*B271","v":0}]
[]
["Funkce",null,null,null,null,21]
["Popis činnosti"]
["Dosažené vzdělání",null,null,"Platová třída (NV 341/2017 Sb.)"]
["Doba odborné praxe",null,null,"Platový stupeň (NV 341/2017 Sb.)"]
["Počet měsíců práce na projektu"]
["Výše úvazku"]
[null,"za projekt celkem",null,"z toho z dotace"]
["Průměrný měsíční plat/mzda \nna daný úvazek (bez odvodů a FKSP)"]
["Průměrný měsíční plat/mzda \npřepočtený na 1 úvazek (bez odvodů a FKSP)",{"$f":"IFERROR(B287/B285,0)","v":0},null,{"$f":"IFERROR(D287/B285,0)","v":0}]
["Zákonné odvody",null,{"$f":"IFERROR(B289/B287,0)","v":0},null,{"$f":"IFERROR(D289/D287,0)","v":0}]
["Příděl do FKSP (tvoří-li ho povinně žadatel)",null,{"$f":"IFERROR(B290/B287,0)","v":0},null,{"$f":"IFERROR(D290/D287,0)","v":0}]
["Mzdové náklady HPP celkem",{"$f":"(B287+B289+B290)*B284","v":0},null,{"$f":"(D287+D289+D290)*B284","v":0}]

{"sheet":"DPP_DPČ","index":5,"n_rows":292,"n_cols":6,"rows_kept":292,"cut":false,"hidden":false,"merged":[[2,5,2,11],[13,1,13,2],[14,1,14,2],[3,1,3,2],[4,1,4,2],[5,1,5,2],[33,1,33,2],[0,0,1,2],[2,0,2,2],[34,1,34,2],[35,1,35,2],[15,1,15,2],[24,1,24,2],[25,1,25,2],[23,1,23,2],[85,1,85,2],[43,1,43,2],[44,1,44,2],[45,1,45,2],[53,1,53,2],[54,1,54,2],[63,1,63,2],[55,1,55,2],[64,1,64,2],[65,1,65,2],[73,1,73,2],[74,1,74,2],[75,1,75,2],[83,1,83,2],[84,1,84,2],[125,1,125,2],[93,1,93,2],[94,1,94,2],[95,1,95,2],[103,1,103,2],[104,1,104,2],[105,1,105,2],[113,1,113,2],[114,1,114,2],[115,1,115,2],[123,1,123,2],[124,1,124,2],[165,1,165,2],[133,1,133,2],[134,1,134,2],[135,1,135,2],[143,1,143,2],[144,1,144,2],[145,1,145,2],[153,1,153,2],[154,1,154,2],[155,1,155,2],[163,1,163,2],[164,1,164,2],[205,1,205,2],[173,1,173,2],[174,1,174,2],[175,1,175,2],[183,1,183,2],[184,1,184,2],[185,1,185,2],[193,1,193,2],[194,1,194,2],[195,1,195,2],[203,1,203,2],[204,1,204,2],[245,1,245,2],[213,1,213,2],[214,1,214,2],[215,1,215,2],[223,1,223,2],[224,1,224,2],[225,1,225,2],[233,1,233,2],[234,1,234,2],[235,1,235,2],[243,1,243,2],[244,1,244,2],[285,1,285,2],[253,1,253,2],[254,1,254,2],[255,1,255,2],[263,1,263,2],[264,1,264,2],[265,1,265,2],[273,1,273,2],[274,1,274,2],[275,1,275,2],[283,1,283,2],[284,1,284,2]]}
[{"$f":"IF(Kryci_list_zadosti!C15<>0,Kryci_list_zadosti!C15,\"\")","v":""}]
[]
["ROZPOČET PROJEKTU - Osobní náklady DPP a DPČ  (v Kč)",null,null,null,null,"Klikněte na příšlušný počet dohod, pro který je nutné vyplnit formulář, pokud nestačí přednastavený počet 1 - 4:"]
["Funkce",null,null,1]
["Popis činnosti",null,null,null,null,"Pokud potřebujete více jak 29 DPP/DPČ, je třeba dokopírovat další tabulky ručně."]
["Plánovaný počet hodin prací na projektu"]
[null,"za projekt celkem","z toho z dotace"]
["Platba za hodinu",null,{"$f":"IFERROR(C9/B6,\" \")","v":" "}]
["Celkové náklady bez odvodů",{"$f":"B6*B8","v":0}]
["Zákonné odvody"]
["%",{"$f":"IFERROR(B10/B9*100,\" \")","v":" "},{"$f":"IFERROR(C10/C9*100,\" \")","v":" "}]
["Náklady celkem",{"$f":"B9+B10","v":0},{"$f":"C9+C10","v":0}]
[]
["Funkce",null,null,2]
["Popis činnosti"]
["Plánovaný počet hodin prací na projektu"]
[null,"za projekt celkem","z toho z dotace"]
["Platba za hodinu",null,{"$f":"IFERROR(C19/B16,\" \")","v":" "}]
["Celkové náklady bez odvodů",{"$f":"B16*B18","v":0}]
["Zákonné odvody"]
["%",{"$f":"IFERROR(B20/B19*100,\" \")","v":" "},{"$f":"IFERROR(C20/C19*100,\" \")","v":" "}]
["Náklady celkem",{"$f":"B19+B20","v":0},{"$f":"C19+C20","v":0}]
[]
["Funkce",null,null,3]
["Popis činnosti"]
["Plánovaný počet hodin prací na projektu"]
[null,"za projekt celkem","z toho z dotace"]
["Platba za hodinu",null,{"$f":"IFERROR(C29/B26,\" \")","v":" "}]
["Celkové náklady bez odvodů",{"$f":"B26*B28","v":0}]
["Zákonné odvody"]
["%",{"$f":"IFERROR(B30/B29*100,\" \")","v":" "},{"$f":"IFERROR(C30/C29*100,\" \")","v":" "}]
["Náklady celkem",{"$f":"B29+B30","v":0},{"$f":"C29+C30","v":0}]
[]
["Funkce",null,null,4]
["Popis činnosti"]
["Plánovaný počet hodin prací na projektu"]
[null,"za projekt celkem","z toho z dotace"]
["Platba za hodinu",null,{"$f":"IFERROR(C39/B36,\" \")","v":" "}]
["Celkové náklady bez odvodů",{"$f":"B36*B38","v":0}]
["Zákonné odvody"]
["%",{"$f":"IFERROR(B40/B39*100,\" \")","v":" "},{"$f":"IFERROR(C40/C39*100,\" \")","v":" "}]
["Náklady celkem",{"$f":"B39+B40","v":0},{"$f":"C39+C40","v":0}]
[]
["Funkce",null,null,5]
["Popis činnosti"]
["Plánovaný počet hodin prací na projektu"]
[null,"za projekt celkem","z toho z dotace"]
["Platba za hodinu",null,{"$f":"IFERROR(C49/B46,\" \")","v":" "}]
["Celkové náklady bez odvodů",{"$f":"B46*B48","v":0}]
["Zákonné odvody"]
["%",{"$f":"IFERROR(B50/B49*100,\" \")","v":" "},{"$f":"IFERROR(C50/C49*100,\" \")","v":" "}]
["Náklady celkem",{"$f":"B49+B50","v":0},{"$f":"C49+C50","v":0}]
[]
["Funkce",null,null,6]
["Popis činnosti"]
["Plánovaný počet hodin prací na projektu"]
[null,"za projekt celkem","z toho z dotace"]
["Platba za hodinu",null,{"$f":"IFERROR(C59/B56,\" \")","v":" "}]
["Celkové náklady bez odvodů",{"$f":"B56*B58","v":0}]
["Zákonné odvody"]
["%",{"$f":"IFERROR(B60/B59*100,\" \")","v":" "},{"$f":"IFERROR(C60/C59*100,\" \")","v":" "}]
["Náklady celkem",{"$f":"B59+B60","v":0},{"$f":"C59+C60","v":0}]
[]
["Funkce",null,null,7]
["Popis činnosti"]
["Plánovaný počet hodin prací na projektu"]
[null,"za projekt celkem","z toho z dotace"]
["Platba za hodinu",null,{"$f":"IFERROR(C69/B66,\" \")","v":" "}]
["Celkové náklady bez odvodů",{"$f":"B66*B68","v":0}]
["Zákonné odvody"]
["%",{"$f":"IFERROR(B70/B69*100,\" \")","v":" "},{"$f":"IFERROR(C70/C69*100,\" \")","v":" "}]
["Náklady celkem",{"$f":"B69+B70","v":0},{"$f":"C69+C70","v":0}]
[]
["Funkce",null,null,8]
["Popis činnosti"]
["Plánovaný počet hodin prací na projektu"]
[null,"za projekt celkem","z toho z dotace"]
["Platba za hodinu",null,{"$f":"IFERROR(C79/B76,\" \")","v":" "}]
["Celkové náklady bez odvodů",{"$f":"B76*B78","v":0}]
["Zákonné odvody"]
["%",{"$f":"IFERROR(B80/B79*100,\" \")","v":" "},{"$f":"IFERROR(C80/C79*100,\" \")","v":" "}]
["Náklady celkem",{"$f":"B79+B80","v":0},{"$f":"C79+C80","v":0}]
[]
["Funkce",null,null,9]
["Popis činnosti"]
["Plánovaný počet hodin prací na projektu"]
[null,"za projekt celkem","z toho z dotace"]
["Platba za hodinu",null,{"$f":"IFERROR(C89/B86,\" \")","v":" "}]
["Celkové náklady bez odvodů",{"$f":"B86*B88","v":0}]
["Zákonné odvody"]
["%",{"$f":"IFERROR(B90/B89*100,\" \")","v":" "},{"$f":"IFERROR(C90/C89*100,\" \")","v":" "}]
["Náklady celkem",{"$f":"B89+B90","v":0},{"$f":"C89+C90","v":0}]
[]
["Funkce",null,null,10]
["Popis činnosti"]
["Plánovaný počet hodin prací na projektu"]
[null,"za projekt celkem","z toho z dotace"]
["Platba za hodinu",null,{"$f":"IFERROR(C99/B96,\" \")","v":" "}]
["Celkové náklady bez odvodů",{"$f":"B96*B98","v":0}]
["Zákonné odvody"]
["%",{"$f":"IFERROR(B100/B99*100,\" \")","v":" "},{"$f":"IFERROR(C100/C99*100,\" \")","v":" "}]
["Náklady celkem",{"$f":"B99+B100","v":0},{"$f":"C99+C100","v":0}]
[]
["Funkce",null,null,11]
["Popis činnosti"]
["Plánovaný počet hodin prací na projektu"]
[null,"za projekt celkem","z toho z dotace"]
["Platba za hodinu",null,{"$f":"IFERROR(C109/B106,\" \")","v":" "}]
["Celkové náklady bez odvodů",{"$f":"B106*B108","v":0}]
["Zákonné odvody"]
["%",{"$f":"IFERROR(B110/B109*100,\" \")","v":" "},{"$f":"IFERROR(C110/C109*100,\" \")","v":" "}]
["Náklady celkem",{"$f":"B109+B110","v":0},{"$f":"C109+C110","v":0}]
[]
["Funkce",null,null,12]
["Popis činnosti"]
["Plánovaný počet hodin prací na projektu"]
[null,"za projekt celkem","z toho z dotace"]
["Platba za hodinu",null,{"$f":"IFERROR(C119/B116,\" \")","v":" "}]
["Celkové náklady bez odvodů",{"$f":"B116*B118","v":0}]
["Zákonné odvody"]
["%",{"$f":"IFERROR(B120/B119*100,\" \")","v":" "},{"$f":"IFERROR(C120/C119*100,\" \")","v":" "}]
["Náklady celkem",{"$f":"B119+B120","v":0},{"$f":"C119+C120","v":0}]
[]
["Funkce",null,null,13]
["Popis činnosti"]
["Plánovaný počet hodin prací na projektu"]
[null,"za projekt celkem","z toho z dotace"]
["Platba za hodinu",null,{"$f":"IFERROR(C129/B126,\" \")","v":" "}]
["Celkové náklady bez odvodů",{"$f":"B126*B128","v":0}]
["Zákonné odvody"]
["%",{"$f":"IFERROR(B130/B129*100,\" \")","v":" "},{"$f":"IFERROR(C130/C129*100,\" \")","v":" "}]
["Náklady celkem",{"$f":"B129+B130","v":0},{"$f":"C129+C130","v":0}]
[]
["Funkce",null,null,14]
["Popis činnosti"]
["Plánovaný počet hodin prací na projektu"]
[null,"za projekt celkem","z toho z dotace"]
["Platba za hodinu",null,{"$f":"IFERROR(C139/B136,\" \")","v":" "}]
["Celkové náklady bez odvodů",{"$f":"B136*B138","v":0}]
["Zákonné odvody"]
["%",{"$f":"IFERROR(B140/B139*100,\" \")","v":" "},{"$f":"IFERROR(C140/C139*100,\" \")","v":" "}]
["Náklady celkem",{"$f":"B139+B140","v":0},{"$f":"C139+C140","v":0}]
[]
["Funkce",null,null,15]
["Popis činnosti"]
["Plánovaný počet hodin prací na projektu"]
[null,"za projekt celkem","z toho z dotace"]
["Platba za hodinu",null,{"$f":"IFERROR(C149/B146,\" \")","v":" "}]
["Celkové náklady bez odvodů",{"$f":"B146*B148","v":0}]
["Zákonné odvody"]
["%",{"$f":"IFERROR(B150/B149*100,\" \")","v":" "},{"$f":"IFERROR(C150/C149*100,\" \")","v":" "}]
["Náklady celkem",{"$f":"B149+B150","v":0},{"$f":"C149+C150","v":0}]
[]
["Funkce",null,null,16]
["Popis činnosti"]
["Plánovaný počet hodin prací na projektu"]
[null,"za projekt celkem","z toho z dotace"]
["Platba za hodinu",null,{"$f":"IFERROR(C159/B156,\" \")","v":" "}]
["Celkové náklady bez odvodů",{"$f":"B156*B158","v":0}]
["Zákonné odvody"]
["%",{"$f":"IFERROR(B160/B159*100,\" \")","v":" "},{"$f":"IFERROR(C160/C159*100,\" \")","v":" "}]
["Náklady celkem",{"$f":"B159+B160","v":0},{"$f":"C159+C160","v":0}]
[]
["Funkce",null,null,17]
["Popis činnosti"]
["Plánovaný počet hodin prací na projektu"]
[null,"za projekt celkem","z toho z dotace"]
["Platba za hodinu",null,{"$f":"IFERROR(C169/B166,\" \")","v":" "}]
["Celkové náklady bez odvodů",{"$f":"B166*B168","v":0}]
["Zákonné odvody"]
["%",{"$f":"IFERROR(B170/B169*100,\" \")","v":" "},{"$f":"IFERROR(C170/C169*100,\" \")","v":" "}]
["Náklady celkem",{"$f":"B169+B170","v":0},{"$f":"C169+C170","v":0}]
[]
["Funkce",null,null,18]
["Popis činnosti"]
["Plánovaný počet hodin prací na projektu"]
[null,"za projekt celkem","z toho z dotace"]
["Platba za hodinu",null,{"$f":"IFERROR(C179/B176,\" \")","v":" "}]
["Celkové náklady bez odvodů",{"$f":"B176*B178","v":0}]
["Zákonné odvody"]
["%",{"$f":"IFERROR(B180/B179*100,\" \")","v":" "},{"$f":"IFERROR(C180/C179*100,\" \")","v":" "}]
["Náklady celkem",{"$f":"B179+B180","v":0},{"$f":"C179+C180","v":0}]
[]
["Funkce",null,null,19]
["Popis činnosti"]
["Plánovaný počet hodin prací na projektu"]
[null,"za projekt celkem","z toho z dotace"]
["Platba za hodinu",null,{"$f":"IFERROR(C189/B186,\" \")","v":" "}]
["Celkové náklady bez odvodů",{"$f":"B186*B188","v":0}]
["Zákonné odvody"]
["%",{"$f":"IFERROR(B190/B189*100,\" \")","v":" "},{"$f":"IFERROR(C190/C189*100,\" \")","v":" "}]
["Náklady celkem",{"$f":"B189+B190","v":0},{"$f":"C189+C190","v":0}]
[]
["Funkce",null,null,20]
["Popis činnosti"]
["Plánovaný počet hodin prací na projektu"]
[null,"za projekt celkem","z toho z dotace"]
["Platba za hodinu",null,{"$f":"IFERROR(C199/B196,\" \")","v":" "}]
["Celkové náklady bez odvodů",{"$f":"B196*B198","v":0}]
["Zákonné odvody"]
["%",{"$f":"IFERROR(B200/B199*100,\" \")","v":" "},{"$f":"IFERROR(C200/C199*100,\" \")","v":" "}]
["Náklady celkem",{"$f":"B199+B200","v":0},{"$f":"C199+C200","v":0}]
[]
["Funkce",null,null,21]
["Popis činnosti"]
["Plánovaný počet hodin prací na projektu"]
[null,"za projekt celkem","z toho z dotace"]
["Platba za hodinu",null,{"$f":"IFERROR(C209/B206,\" \")","v":" "}]
["Celkové náklady bez odvodů",{"$f":"B206*B208","v":0}]
["Zákonné odvody"]
["%",{"$f":"IFERROR(B210/B209*100,\" \")","v":" "},{"$f":"IFERROR(C210/C209*100,\" \")","v":" "}]
["Náklady celkem",{"$f":"B209+B210","v":0},{"$f":"C209+C210","v":0}]
[]
["Funkce",null,null,22]
["Popis činnosti"]
["Plánovaný počet hodin prací na projektu"]
[null,"za projekt celkem","z toho z dotace"]
["Platba za hodinu",null,{"$f":"IFERROR(C219/B216,\" \")","v":" "}]
["Celkové náklady bez odvodů",{"$f":"B216*B218","v":0}]
["Zákonné odvody"]
["%",{"$f":"IFERROR(B220/B219*100,\" \")","v":" "},{"$f":"IFERROR(C220/C219*100,\" \")","v":" "}]
["Náklady celkem",{"$f":"B219+B220","v":0},{"$f":"C219+C220","v":0}]
[]
["Funkce",null,null,23]
["Popis činnosti"]
["Plánovaný počet hodin prací na projektu"]
[null,"za projekt celkem","z toho z dotace"]
["Platba za hodinu",null,{"$f":"IFERROR(C229/B226,\" \")","v":" "}]
["Celkové náklady bez odvodů",{"$f":"B226*B228","v":0}]
["Zákonné odvody"]
["%",{"$f":"IFERROR(B230/B229*100,\" \")","v":" "},{"$f":"IFERROR(C230/C229*100,\" \")","v":" "}]
["Náklady celkem",{"$f":"B229+B230","v":0},{"$f":"C229+C230","v":0}]
[]
["Funkce",null,null,24]
["Popis činnosti"]
["Plánovaný počet hodin prací na projektu"]
[null,"za projekt celkem","z toho z dotace"]
["Platba za hodinu",null,{"$f":"IFERROR(C239/B236,\" \")","v":" "}]
["Celkové náklady bez odvodů",{"$f":"B236*B238","v":0}]
["Zákonné odvody"]
["%",{"$f":"IFERROR(B240/B239*100,\" \")","v":" "},{"$f":"IFERROR(C240/C239*100,\" \")","v":" "}]
["Náklady celkem",{"$f":"B239+B240","v":0},{"$f":"C239+C240","v":0}]
[]
["Funkce",null,null,25]
["Popis činnosti"]
["Plánovaný počet hodin prací na projektu"]
[null,"za projekt celkem","z toho z dotace"]
["Platba za hodinu",null,{"$f":"IFERROR(C249/B246,\" \")","v":" "}]
["Celkové náklady bez odvodů",{"$f":"B246*B248","v":0}]
["Zákonné odvody"]
["%",{"$f":"IFERROR(B250/B249*100,\" \")","v":" "},{"$f":"IFERROR(C250/C249*100,\" \")","v":" "}]
["Náklady celkem",{"$f":"B249+B250","v":0},{"$f":"C249+C250","v":0}]
[]
["Funkce",null,null,26]
["Popis činnosti"]
["Plánovaný počet hodin prací na projektu"]
[null,"za projekt celkem","z toho z dotace"]
["Platba za hodinu",null,{"$f":"IFERROR(C259/B256,\" \")","v":" "}]
["Celkové náklady bez odvodů",{"$f":"B256*B258","v":0}]
["Zákonné odvody"]
["%",{"$f":"IFERROR(B260/B259*100,\" \")","v":" "},{"$f":"IFERROR(C260/C259*100,\" \")","v":" "}]
["Náklady celkem",{"$f":"B259+B260","v":0},{"$f":"C259+C260","v":0}]
[]
["Funkce",null,null,27]
["Popis činnosti"]
["Plánovaný počet hodin prací na projektu"]
[null,"za projekt celkem","z toho z dotace"]
["Platba za hodinu",null,{"$f":"IFERROR(C269/B266,\" \")","v":" "}]
["Celkové náklady bez odvodů",{"$f":"B266*B268","v":0}]
["Zákonné odvody"]
["%",{"$f":"IFERROR(B270/B269*100,\" \")","v":" "},{"$f":"IFERROR(C270/C269*100,\" \")","v":" "}]
["Náklady celkem",{"$f":"B269+B270","v":0},{"$f":"C269+C270","v":0}]
[]
["Funkce",null,null,28]
["Popis činnosti"]
["Plánovaný počet hodin prací na projektu"]
[null,"za projekt celkem","z toho z dotace"]
["Platba za hodinu",null,{"$f":"IFERROR(C279/B276,\" \")","v":" "}]
["Celkové náklady bez odvodů",{"$f":"B276*B278","v":0}]
["Zákonné odvody"]
["%",{"$f":"IFERROR(B280/B279*100,\" \")","v":" "},{"$f":"IFERROR(C280/C279*100,\" \")","v":" "}]
["Náklady celkem",{"$f":"B279+B280","v":0},{"$f":"C279+C280","v":0}]
[]
["Funkce",null,null,29]
["Popis činnosti"]
["Plánovaný počet hodin prací na projektu"]
[null,"za projekt celkem","z toho z dotace"]
["Platba za hodinu",null,{"$f":"IFERROR(C289/B286,\" \")","v":" "}]
["Celkové náklady bez odvodů",{"$f":"B286*B288","v":0}]
["Zákonné odvody"]
["%",{"$f":"IFERROR(B290/B289*100,\" \")","v":" "},{"$f":"IFERROR(C290/C289*100,\" \")","v":" "}]
["Náklady celkem",{"$f":"B289+B290","v":0},{"$f":"C289+C290","v":0}]

{"sheet":"ONIV rozpočet","index":6,"n_rows":38,"n_cols":3,"rows_kept":38,"cut":false,"hidden":false,"merged":[[0,0,1,2],[2,0,2,2]]}
[{"$f":"IF(Kryci_list_zadosti!C15<>0,Kryci_list_zadosti!C15,\"\")","v":""}]
[]
["ROZPOČET PROJEKTU - ostatní neinvestiční náklady -  finanční vyčíslení v Kč"]
[]
[null,"Náklady na projekt","Z toho z dotace"]
["Potraviny"]
["DDHM s pořizovací cenou do 40.000 Kč"]
["Pohonné  hmoty"]
["Kancelářské potřeby"]
["Výukový materiál"]
["Ostatní materiál"]
["Materiálové náklady celkem",{"$f":"SUM(B6:B11)","v":0},{"$f":"SUM(C6:C11)","v":0}]
[]
["Nájemné (např. budova sídla)"]
["Pronájem (např. prostor pro realizaci akce)"]
["Energie (elektřina, vodné, stočné, plyn..)"]
["Internet"]
["Telekomunikační poplatky"]
["Poštovné"]
["Cestovné realizátorů - max. do ceny jízdenky veřejné dopravy"]
["Cestovné cílové skupiny - max. do ceny jízdenky veřejné dopravy"]
["Doprava (např. pronájem autobusu)"]
["Ubytování"]
["Školení/vzdělávání vlastních zaměstnanců "]
["Školení/vzdělávání cílové skupiny"]
["DDNM s pořizovací cenou do 60.000 Kč"]
["Software - licence "]
["Honoráře - Ekonomické služby"]
["Honoráře - Právní služby"]
["Honoráře - Ostatní služby"]
["Propagace projektu"]
["Tisk nesouvisející s propagací"]
["Ostatní nemateriálové náklady"]
["Nemateriálové náklady celkem",{"$f":"SUM(B14:B33)","v":0},{"$f":"SUM(C14:C33)","v":0}]
[]
["Ostatní neinvestiční náklady celkem",{"$f":"B34+B12","v":0},{"$f":"C34+C12","v":0}]
["DDHM = Drobný dlouhodobý hmotný majetek"]
["DDNM = Drobný dlouhodobý nehmotný majetek"]

{"sheet":"ONIV komentář","index":7,"n_rows":56,"n_cols":3,"rows_kept":56,"cut":false,"hidden":false,"merged":[[0,0,1,0],[2,2,2,10],[3,2,4,10]]}
[{"$f":"IF(Kryci_list_zadosti!C15<>0,Kryci_list_zadosti!C15,\"\")","v":""}]
[]
["ROZPOČET PROJEKTU - ostatní neinvestiční náklady  -  komentář",null,"výšku řádku přizpůsobte rozsahu komentáře"]
[null,null,"můžete tak učinit ručně,  popř. za použití tlačítka po zapsání komentářů "]
["Potraviny"]
[]
["Drobný dlouhodobý hmotný majetek s pořizovací cenou do 40.000 Kč"]
[]
["Pohonné  hmoty"]
[]
["Kancelářské potřeby"]
[]
["Výukový materiál"]
[]
["Ostatní materiál"]
[]
[]
["Nájemné (např. budova sídla)"]
[]
["Pronájem (např. prostor pro realizaci akce)"]
[]
["Energie (elektřina, vodné, stočné, plyn..)"]
[]
["Internet"]
[]
["Telekomunikační poplatky"]
[]
["Poštovné"]
[]
["Cestovné realizátorů - max. do ceny jízdenky veřejné dopravy"]
[]
["Cestovné cílové skupiny - max. do ceny jízdenky veřejné dopravy"]
[]
["Doprava (např. pronájem autobusu)"]
[]
["Ubytování"]
[]
["Školení/vzdělávání vlastních zaměstnanců "]
[]
["Školení/vzdělávání cílové skupiny"]
[]
["Drobný dlouhodobý nehmotný majetek s pořizovací cenou do 60.000 Kč"]
[]
["Software - licence "]
[]
["Honoráře - Ekonomické služby"]
[]
["Honoráře - Právní služby"]
[]
["Honoráře - Ostatní služby"]
[]
["Propagace projektu"]
[]
["Tisk nesouvisející s propagací"]
[]
["Ostatní nemateriálové náklady"]

{"sheet":"zdroj dat","index":8,"n_rows":16,"n_cols":2,"rows_kept":16,"cut":false,"hidden":true,"merged":[]}
[null,"vyberte název kraje"]
[null,"není relevantní"]
[null,"Hlavní město Praha"]
[null,"Středočeský kraj"]
[null,"Jihočeský kraj"]
[null,"Plzeňský kraj"]
[null,"Karlovarský kraj"]
[null,"Ústecký kraj"]
[null,"Liberecký kraj"]
[null,"Královéhradecký kraj\t"]
[null,"Pardubický kraj"]
[null,"Kraj Vysočina"]
[null,"Jihomoravský kraj"]
[null,"Olomoucký kraj"]
[null,"Zlínský kraj"]
[null,"Moravskoslezský kraj"]

{"sheet":"Zdroje","index":9,"n_rows":36,"n_cols":3,"rows_kept":36,"cut":false,"hidden":false,"merged":[[35,0,35,1],[0,0,1,2],[2,0,2,2],[4,0,19,0],[20,0,32,0],[33,0,33,1],[34,0,34,1]]}
[{"$f":"IF(Kryci_list_zadosti!C15<>0,Kryci_list_zadosti!C15,\"\")","v":""}]
[]
["FINANČNÍ ZDROJE PROJEKTU"]
[]
["Zdroje ze státního rozpočtu ","Název zdroje","Částka v Kč / komentář"]
[null,"MŠMT - dotace v rámci této Výzvy"]
[null,"MŠMT - jiné příjmy"]
[null,"                konkretizujte"]
[null,"MŠMT celkem",{"$f":"C6+C7","v":0}]
[null,"Úřad vlády "]
[null,"Ministerstvo práce a sociální věcí "]
[null,"Ministerstvo kultury"]
[null,"Miniterstvo vnitra"]
[null,"Ministerstvo zdravotnictví"]
[null,"Ministerstvo pro místní rozvoj"]
[null,"Ostatní resorty státní správy"]
[null,"Úřady práce"]
[null,"Fondy zdravotních pojišťoven"]
[null,"Zdroje ze státního rozpočt, bez MŠMT",{"$f":"SUM(C10:C18)","v":0}]
[null,"Zdroje ze státního rozpočtu, vč. MŠMT",{"$f":"C9+C19","v":0}]
["Ostatní zdroje","Kraj"]
[null,"Obec"]
[null,"Nadace zahraniční i tuzemské"]
[null,"Sbírky"]
[null,"Sponzorské dary"]
[null,"Příjmy od klientů"]
[null,"Příjmy z projektu (vstupné, kurzovné…)"]
[null,"                konkretizujte"]
[null,"Vlastní příjmy"]
[null,"                konkretizujte"]
[null,"Ostatní"]
[null,"                konkretizujte"]
[null,"Ostatní zdroje celkem",{"$f":"SUM(C21:C27)+C29+C31","v":0}]
["Zdroje ze státního rozpočtu a ostatní zdroje celkem",null,{"$f":"C20+C33","v":0}]
["Podíl finančních prostředků ze státního rozpočtu na projektu",null,{"$f":"IFERROR(C20/C34,\"\")","v":""}]
["Podíl dotace MSMT na celkových  nákladech na projekt",null,{"$f":"IFERROR(C6/C34,\"\")","v":""}]

{"sheet":"Informace k vyplnění","index":10,"n_rows":7,"n_cols":1,"rows_kept":7,"cut":false,"hidden":false,"merged":[]}
[]
[]
[]
[]
[]
[]
["Rozpočet je nutné uvádět zaokrouhlen na celé koruny."]